bitfinex/quotes_SOLUSD_20250625
["timestamp","ask_amount","ask_price","bid_price","bid_amount"]
[1750891726130,36.63512837,143.08,143.02,18.64964886]
[1750891726131,5.74276047,143.07,143.02,31.38436988]
[1750891727138,10.63555654,143.07,143.02,31.38436988]
[1750891727332,5.74276047,143.07,143.02,31.38436988]
[1750891727557,5.74276047,143.08,143.03,5.74276047]
[1750891727739,5.74276047,143.09,143.04,5.74276047]
[1750891728243,37.07177693,143.1,143.04,5.74276047]
[1750891728452,5.74276047,143.09,143.04,5.74276047]
[1750891729034,5.74276047,143.09,143.02,6.99196055]
[1750891729035,5.74276047,143.09,143.05,5.74276047]
[1750891729346,5.74276047,143.09,143.02,24.47203326]
[1750891729347,31.74276047,143.07,143.0,21.0]
[1750891729551,4.89203762,143.09,143.0,21.0]
[1750891729552,5.74276047,143.01,143.0,21.0]
[1750891729750,6.16924518,143.01,143.0,21.0]
[1750891730250,5.74276047,143.01,143.0,21.0]
[1750891731654,10.63752307,143.01,143.0,21.0]
[1750891732455,13.53555709,143.01,143.0,21.0]
[1750891734653,19.7153315,143.02,143.0,21.0]
[1750891736758,14.82079449,143.02,143.0,21.0]
[1750891737348,6.18,143.02,143.0,21.0]
[1750891737541,6.18,143.02,143.0,27.99296325]
[1750891737739,6.18,143.02,143.0,36.63375774]
[1750891737952,6.18,143.02,143.0,27.99296325]
[1750891738146,6.18,143.02,143.0,21.0]
[1750891738449,14.82079449,143.02,143.0,21.0]
[1750891738838,6.18,143.02,143.0,21.0]
[1750891740461,6.18,143.02,143.0,27.99291239]
[1750891740844,6.18,143.02,143.0,21.0]
[1750891741862,6.18,143.02,143.0,27.99298077]
[1750891744167,6.18,143.02,143.0,21.0]
[1750891748071,11.07446986,143.02,143.0,21.0]
[1750891748247,19.71526435,143.02,143.0,21.0]
[1750891748442,8.64079449,143.01,143.0,21.0]
[1750891749370,11.07446986,143.02,143.0,21.0]
[1750891749562,8.64079449,143.01,143.0,21.0]
[1750891750274,13.53555709,143.01,143.0,21.0]
[1750891752139,18.72618538,143.01,143.0,21.0]
[1750891752546,19.15267009,143.01,143.0,21.0]
[1750891753273,52.95190252,143.01,143.0,21.0]
[1750891753449,46.44311344,143.01,143.0,7.89160883]
[1750891754463,34.92491403,143.01,143.0,7.89160883]
[1750891756274,10.5118756,143.01,143.0,7.89160883]
[1750891756456,16.27526517,143.01,143.0,7.89160883]
[1750891756657,15.99094203,143.01,143.0,7.89160883]
[1750891757052,16.27526517,143.01,143.0,7.89160883]
[1750891757575,10.08539089,143.01,143.0,7.89160883]
[1750891757871,16.27526517,143.01,143.0,7.89160883]
[1750891758251,16.1331036,143.01,143.0,7.89160883]
[1750891758450,16.27526517,143.01,143.0,7.89160883]
[1750891758850,11.08463688,143.01,143.0,7.89160883]
[1750891759049,16.29332488,143.01,143.0,7.89160883]
[1750891760668,42.29332488,143.01,143.0,7.89160883]
[1750891763866,41.86684017,143.01,143.0,7.89160883]
[1750891764574,10.97207757,143.01,143.0,7.89160883]
[1750891765073,5.76338957,143.01,143.0,7.89160883]
[1750891766151,12.16338957,143.02,143.0,7.89160883]
[1750891766374,17.05782347,143.02,143.0,7.89160883]
[1750891767254,5.76338957,143.01,143.0,7.89160883]
[1750891768162,17.05782347,143.02,143.0,7.89160883]
[1750891770376,5.76338957,143.01,143.0,7.89160883]
[1750891771855,10.65815217,143.01,143.0,7.89160883]
[1750891772355,15.87347333,143.01,143.0,7.89160883]
[1750891773701,10.65815217,143.01,143.0,7.89160883]
[1750891778889,4.8947626,143.01,143.0,7.89160883]
[1750891779084,10.65815217,143.01,143.0,7.89160883]
[1750891783495,4.8947626,143.01,143.0,7.89160883]
[1750891783979,11.29455397,143.02,143.0,7.89160883]
[1750891784179,6.4,143.02,143.0,7.89160883]
[1750891789384,6.4,143.02,143.0,20.6479284]
[1750891790290,6.4,143.02,143.0,14.88453883]
[1750891792902,6.4,143.02,143.0,7.89160883]
[1750891794180,11.29457352,143.02,143.0,7.89160883]
[1750891794493,17.05796309,143.02,143.0,7.89160883]
[1750891794694,11.29457352,143.02,143.0,7.89160883]
[1750891794895,17.05796309,143.02,143.0,7.89160883]
[1750891795488,12.16338957,143.02,143.0,7.89160883]
[1750891795684,6.4,143.02,143.0,7.89160883]
[1750891798297,12.16338957,143.02,143.0,7.89160883]
[1750891799102,17.05782615,143.02,143.0,7.89160883]
[1750891799307,10.98688692,143.01,143.0,7.89160883]
[1750891800812,15.88319074,143.01,143.0,7.89160883]
[1750891801299,10.11980117,143.01,143.0,7.89160883]
[1750891801694,15.88319074,143.01,143.0,7.89160883]
[1750891802103,10.11980117,143.01,143.0,7.89160883]
[1750891802407,15.88319074,143.01,143.0,7.89160883]
[1750891804711,5.22503857,143.01,143.0,7.89160883]
[1750891805007,17.05790677,143.02,143.0,7.89160883]
[1750891807012,5.22902848,143.01,143.0,7.89160883]
[1750891808112,10.65762486,143.03,143.0,7.89160883]
[1750891808412,5.22947264,143.02,143.0,7.89160883]
[1750891808615,10.65762486,143.03,143.0,7.89160883]
[1750891808817,5.22959194,143.02,143.0,7.89160883]
[1750891808995,10.65762486,143.03,143.0,7.89160883]
[1750891809197,5.22959313,143.02,143.0,7.89160883]
[1750891809518,159.25728421,143.04,143.0,14.88460337]
[1750891809710,5.2297934,143.03,143.0,7.89160883]
[1750891809926,5.2297934,143.02,143.0,7.89160883]
[1750891810097,5.76338957,143.03,143.0,7.89160883]
[1750891810297,5.22974484,143.02,143.0,7.89160883]
[1750891810498,5.76338957,143.03,143.0,7.89160883]
[1750891810798,5.2298281,143.02,143.0,7.89160883]
[1750891811001,5.76338957,143.03,143.0,7.89160883]
[1750891811299,5.22982691,143.02,143.0,7.89160883]
[1750891811512,5.76338957,143.03,143.0,7.89160883]
[1750891811706,5.22978862,143.02,143.0,7.89160883]
[1750891811912,5.76338957,143.03,143.0,7.89160883]
[1750891812116,5.22978981,143.02,143.0,7.89160883]
[1750891812312,5.76338957,143.03,143.0,7.89160883]
[1750891812614,5.22968007,143.02,143.0,7.89160883]
[1750891812915,5.76338957,143.03,143.0,7.89160883]
[1750891813099,5.22968007,143.02,143.0,7.89160883]
[1750891813298,5.76338957,143.03,143.0,7.89160883]
[1750891813520,5.22959363,143.02,143.0,7.89160883]
[1750891813719,5.76338957,143.03,143.0,7.89160883]
[1750891814025,5.22959233,143.02,143.0,7.89160883]
[1750891814323,5.76338957,143.03,143.0,7.89160883]
[1750891814524,5.22964516,143.02,143.0,7.89160883]
[1750891814729,5.76338957,143.03,143.0,7.89160883]
[1750891814929,5.22964516,143.02,143.0,7.89160883]
[1750891815126,5.76338957,143.03,143.0,7.89160883]
[1750891815429,5.76338957,143.03,143.0,14.88446781]
[1750891815811,5.76338957,143.03,143.0,7.89160883]
[1750891817225,10.65748576,143.03,143.0,7.89160883]
[1750891817431,5.22944794,143.02,143.0,7.89160883]
[1750891817606,10.65748576,143.03,143.0,7.89160883]
[1750891817805,5.22951695,143.02,143.0,7.89160883]
[1750891818004,5.76338957,143.03,143.0,7.89160883]
[1750891818211,5.22951695,143.02,143.0,7.89160883]
[1750891818515,5.76338957,143.03,143.0,7.89160883]
[1750891818701,5.22982964,143.02,143.0,7.89160883]
[1750891818901,10.65749293,143.03,143.0,7.89160883]
[1750891819102,10.9932945,143.02,143.0,7.89160883]
[1750891819302,5.76338957,143.02,143.0,7.89160883]
[1750891819819,5.230298,143.01,143.0,7.89160883]
[1750891822623,148.6,143.04,143.0,14.88461582]
[1750891822834,5.23015427,143.03,143.0,14.88461582]
[1750891823042,154.36338957,143.04,143.0,14.88461582]
[1750891823212,5.23022295,143.03,143.0,14.88461582]
[1750891823407,154.36338957,143.04,143.0,14.88461582]
[1750891823608,5.23018554,143.03,143.0,14.88461582]
[1750891823921,154.36338957,143.04,143.0,20.64800539]
[1750891824125,5.23018554,143.03,143.0,20.64800539]
[1750891824306,154.36338957,143.04,143.0,14.88461582]
[1750891824629,5.23024899,143.03,143.0,14.88461582]
[1750891824836,154.36338957,143.04,143.0,14.88461582]
[1750891825033,5.23024899,143.03,143.0,14.88461582]
[1750891825244,154.36338957,143.04,143.0,14.88461582]
[1750891825421,5.2303426,143.03,143.0,14.88461582]
[1750891825623,154.36338957,143.04,143.0,14.88461582]
[1750891825827,5.2303414,143.03,143.0,14.88461582]
[1750891826134,154.36338957,143.04,143.0,14.88461582]
[1750891826326,5.23046869,143.03,143.0,14.88461582]
[1750891826510,154.36338957,143.04,143.0,14.88461582]
[1750891826830,5.23046574,143.03,143.0,14.88461582]
[1750891827135,154.36338957,143.04,143.0,14.88461582]
[1750891827320,5.23061653,143.03,143.0,14.88461582]
[1750891827506,154.36338957,143.04,143.0,14.88461582]
[1750891827706,5.23062464,143.03,143.0,14.88461582]
[1750891827921,154.36338957,143.04,143.0,14.88461582]
[1750891828128,5.23062464,143.03,143.0,14.88461582]
[1750891828330,154.36338957,143.04,143.0,14.88461582]
[1750891828636,5.23082213,143.03,143.0,14.88461582]
[1750891828841,159.25713084,143.04,143.0,14.88461582]
[1750891829014,5.23082213,143.03,143.0,14.88461582]
[1750891829216,159.25713084,143.04,143.0,14.88461582]
[1750891829410,5.23085899,143.03,143.0,7.89160883]
[1750891829615,5.76338957,143.03,143.0,7.89160883]
[1750891832055,159.25713084,143.04,143.0,14.88458436]
[1750891832344,5.23080959,143.03,143.0,14.88458436]
[1750891832518,159.25713084,143.04,143.0,14.88458436]
[1750891832719,5.23083599,143.03,143.0,14.88458436]
[1750891833021,159.25713084,143.04,143.0,14.88458436]
[1750891833217,5.23083599,143.03,143.0,14.88458436]
[1750891833413,159.25713084,143.04,143.0,14.88458436]
[1750891833729,5.23083032,143.03,143.0,14.88458436]
[1750891833920,159.25713084,143.04,143.0,14.88458436]
[1750891834123,5.23082913,143.03,143.0,14.88458436]
[1750891834326,159.25713084,143.04,143.0,14.88458436]
[1750891834532,5.23082228,143.03,143.0,14.88458436]
[1750891834832,159.25713084,143.04,143.0,14.88458436]
[1750891835136,5.23082228,143.03,143.0,14.88458436]
[1750891835436,159.25713084,143.04,143.0,14.88458436]
[1750891835734,5.23081846,143.03,143.0,14.88458436]
[1750891835914,159.25713084,143.04,143.0,14.88458436]
[1750891836116,5.23081727,143.03,143.0,14.88458436]
[1750891836327,157.17844111,143.04,143.0,14.88458436]
[1750891836521,5.23081346,143.03,143.0,14.88458436]
[1750891836724,157.17844111,143.04,143.0,14.88458436]
[1750891836922,5.23081226,143.03,143.0,14.88458436]
[1750891837154,157.17844111,143.04,143.0,14.88458436]
[1750891837328,5.23077839,143.03,143.0,14.88458436]
[1750891837526,157.17844111,143.04,143.0,14.88458436]
[1750891837733,5.23080611,143.03,143.0,14.88458436]
[1750891837927,152.28469984,143.04,143.0,14.88458436]
[1750891838230,5.23080611,143.03,143.0,14.88458436]
[1750891838407,152.28469984,143.04,143.0,14.88458436]
[1750891838613,5.23079996,143.03,143.0,18.5692842]
[1750891838813,148.6,143.04,143.0,18.5692842]
[1750891839029,5.23072585,143.03,143.0,18.5692842]
[1750891839348,170.01531537,143.07,143.02,3.68469984]
[1750891839511,5.22985241,143.06,143.02,3.68469984]
[1750891839720,5.22985241,143.05,143.02,32.26469984]
[1750891839920,163.47758195,143.07,143.02,39.25652661]
[1750891840124,5.22969819,143.06,143.02,39.25652661]
[1750891840340,5.22969819,143.05,143.02,39.25652661]
[1750891840541,163.47758195,143.07,143.02,39.25652661]
[1750891840745,8.91333508,143.06,143.02,35.57182677]
[1750891840920,5.22863524,143.05,143.02,28.58]
[1750891841124,5.22863524,143.04,143.02,28.58]
[1750891841341,4.89352447,143.05,143.02,28.58]
[1750891841543,5.22823498,143.04,143.02,28.58]
[1750891841843,4.89352447,143.05,143.02,28.58]
[1750891842152,5.22823379,143.04,143.02,28.58]
[1750891842446,8.57822431,143.05,143.02,28.58]
[1750891842744,5.22785826,143.04,143.02,28.58]
[1750891842943,8.57822431,143.05,143.02,28.58]
[1750891843130,5.22785826,143.04,143.02,28.58]
[1750891843326,8.57822431,143.05,143.02,28.58]
[1750891843531,5.22773918,143.04,143.02,28.58]
[1750891843732,8.57822431,143.05,143.02,28.58]
[1750891843921,5.22773801,143.04,143.02,28.58]
[1750891844121,8.57822431,143.05,143.02,28.58]
[1750891844320,5.22760142,143.04,143.03,1.5621]
[1750891844517,3.68469984,143.06,143.03,1.5621]
[1750891844729,5.22711377,143.05,143.03,1.5621]
[1750891844935,3.68469984,143.06,143.03,1.5621]
[1750891845137,5.227189,143.05,143.03,1.5621]
[1750891845335,3.68469984,143.06,143.03,1.5621]
[1750891845642,5.22765987,143.05,143.03,1.5621]
[1750891845836,3.68469984,143.06,143.03,1.5621]
[1750891846026,5.22765987,143.05,143.02,35.57198257]
[1750891846225,3.68469984,143.06,143.02,35.57198257]
[1750891846421,5.22806317,143.05,143.02,35.57198257]
[1750891846628,8.57777358,143.06,143.02,35.57198257]
[1750891846835,5.22806317,143.05,143.02,35.57198257]
[1750891847155,3.68469984,143.06,143.02,35.57198257]
[1750891847445,5.22798792,143.05,143.02,39.25668241]
[1750891847745,157.21747318,143.07,143.03,3.68469984]
[1750891847947,5.22783216,143.06,143.03,3.68469984]
[1750891848142,5.22783216,143.05,143.03,3.68469984]
[1750891848334,157.21747318,143.07,143.03,3.68469984]
[1750891848537,5.22796553,143.06,143.03,10.67612504]
[1750891848739,5.22796553,143.05,143.03,10.67612504]
[1750891848921,157.21747318,143.07,143.02,39.25653246]
[1750891849130,8.91266776,143.06,143.02,28.58]
[1750891849335,5.22796792,143.05,143.02,28.58]
[1750891849552,3.68469984,143.06,143.02,28.58]
[1750891849754,5.22845378,143.05,143.02,28.58]
[1750891850050,3.68469984,143.06,143.02,28.58]
[1750891850255,5.22845378,143.05,143.02,35.57199963]
[1750891850430,8.57777,143.06,143.02,35.57199963]
[1750891850630,5.2282764,143.05,143.02,35.57199963]
[1750891850856,3.68469984,143.06,143.02,35.57199963]
[1750891851153,5.2282764,143.05,143.02,35.57199963]
[1750891851332,8.57775537,143.06,143.02,35.57199963]
[1750891851530,5.22815246,143.05,143.02,35.57199963]
[1750891851745,8.57775537,143.06,143.02,35.57199963]
[1750891851946,5.22807721,143.05,143.02,35.57199963]
[1750891852167,8.57775537,143.06,143.02,35.57199963]
[1750891852345,5.2280784,143.05,143.02,35.57199963]
[1750891852549,8.57775537,143.06,143.02,35.57199963]
[1750891852741,5.22808916,143.05,143.02,35.57199963]
[1750891852936,3.68469984,143.06,143.02,35.57199963]
[1750891853153,5.22808797,143.05,143.02,39.25669947]
[1750891853357,157.21758513,143.07,143.02,39.25669947]
[1750891853655,5.22771691,143.06,143.02,39.25669947]
[1750891853858,5.22771691,143.05,143.02,39.25669947]
[1750891854043,157.21758513,143.07,143.02,39.25669947]
[1750891854243,5.22771691,143.06,143.02,39.25669947]
[1750891854458,152.32469984,143.07,143.02,39.25669947]
[1750891854653,5.22730314,143.06,143.03,3.68469984]
[1750891854846,148.64,143.07,143.04,3.68469984]
[1750891855157,148.64,143.07,143.05,28.56]
[1750891855158,0.04,143.07,143.05,28.56]
[1750891856741,0.04,143.07,143.06,3.68469984]
[1750891858256,0.04,143.07,143.06,10.67477393]
[1750891859039,0.04,143.07,143.06,6.99007409]
[1750891859248,0.04,143.07,143.06,10.67477393]
[1750891867261,0.04,143.07,143.06,11.10125864]
[1750891867656,0.04,143.07,143.06,44.35486604]
[1750891868357,0.04,143.1,143.06,44.35486604]
[1750891868358,0.04,143.1,143.07,26.42648471]
[1750891868557,0.04,143.1,143.09,31.74724791]
[1750891869162,0.04,143.1,143.09,32.98860856]
[1750891869363,0.04,143.1,143.09,38.73585647]
[1750891873047,0.04,143.1,143.09,39.16234118]
[1750891873255,0.04,143.12,143.1,0.42648471]
[1750891873555,0.04,143.12,143.11,34.28724791]
[1750891873892,0.04,143.12,143.11,60.71373262]
[1750891874060,0.04,143.12,143.11,67.16373262]
[1750891876171,0.04,143.12,143.11,74.15136451]
[1750891881699,0.04,143.15,143.14,26.0]
[1750891881868,0.04,143.15,143.14,60.28724791]
[1750891882957,0.04,143.15,143.14,67.27341529]
[1750891888309,0.04,143.15,143.14,65.20278629]
[1750891889412,0.04,143.15,143.14,35.52616738]
[1750891889585,0.04,143.15,143.14,28.54]
[1750891890816,3.71661891,143.15,143.08,1.6311]
[1750891891018,3.67661891,143.14,143.1,3.67661891]
[1750891891221,3.67661891,143.14,143.11,28.54]
[1750891891905,4.93013312,143.15,143.11,35.52756522]
[1750891891906,0.04,143.15,143.11,35.52756522]
[1750891892111,0.04,143.15,143.11,39.20418413]
[1750891892286,5.78783585,143.15,143.11,41.27540107]
[1750891892486,5.78783585,143.15,143.11,35.52756522]
[1750891892687,5.78783585,143.15,143.11,41.27540107]
[1750891893212,5.78783585,143.15,143.11,35.52756522]
[1750891893411,5.78783585,143.15,143.11,41.27540107]
[1750891893710,0.04,143.15,143.11,41.27540107]
[1750891893914,5.78783585,143.15,143.11,41.27540107]
[1750891895114,5.74783585,143.14,143.11,35.52756522]
[1750891895301,5.74783585,143.12,143.1,6.98792812]
[1750891895613,5.74783585,143.12,143.1,28.54]
[1750891898416,5.74783585,143.12,143.08,12.7365064]
[1750891898617,5.74783585,143.12,143.09,28.54]
[1750891902320,10.63889713,143.12,143.09,28.54]
[1750891902703,5.74783585,143.12,143.09,28.54]
[1750891905307,4.89081593,143.13,143.09,35.52855317]
[1750891905508,5.74783585,143.12,143.09,35.52855317]
[1750891905921,5.74783585,143.12,143.09,28.54]
[1750891908302,5.74783585,143.12,143.09,35.52858401]
[1750891909011,11.67455386,143.14,143.09,35.52858401]
[1750891909213,5.74783585,143.12,143.09,35.52858401]
[1750891909996,5.74783585,143.13,143.09,41.27641986]
[1750891911932,1.5872,143.14,143.1,12.73575877]
[1750891912248,7.33503585,143.14,143.11,28.54]
[1750891912429,5.26626965,143.14,143.11,28.54]
[1750891914434,0.04,143.15,143.11,39.2065144]
[1750891914611,3.71906965,143.15,143.11,39.2065144]
[1750891915803,3.71906965,143.15,143.11,35.52744475]
[1750891916830,0.04,143.15,143.11,35.52744475]
[1750891917025,3.71906965,143.15,143.11,35.52744475]
[1750891920523,3.67906965,143.14,143.11,35.52744475]
[1750891920720,3.67906965,143.14,143.11,28.54]
[1750891920922,3.67906965,143.13,143.11,28.54]
[1750891925340,4.89038723,143.14,143.11,28.54]
[1750891925526,3.67906965,143.13,143.11,28.54]
[1750891927140,3.67906965,143.14,143.11,28.54]
[1750891927546,8.56942765,143.14,143.11,28.54]
[1750891928743,3.67906965,143.14,143.11,28.54]
[1750891931140,3.67906965,143.14,143.11,35.52759846]
[1750891931346,3.71906965,143.15,143.11,35.52759846]
[1750891931640,5.21917813,143.14,143.11,35.52759846]
[1750891931838,3.71906965,143.15,143.11,35.52759846]
[1750891933933,8.6090952,143.15,143.11,35.52759846]
[1750891934327,5.22289932,143.14,143.11,35.52759846]
[1750891934526,8.6090952,143.15,143.11,35.52759846]
[1750891934726,5.22556998,143.14,143.11,35.52759846]
[1750891934935,8.6090952,143.15,143.11,35.52759846]
[1750891935135,5.22556998,143.14,143.11,35.52759846]
[1750891935347,8.6090952,143.15,143.11,35.52759846]
[1750891935529,5.22565528,143.14,143.11,35.52759846]
[1750891935729,8.6090952,143.15,143.11,35.52759846]
[1750891935946,5.22684109,143.14,143.11,35.52759846]
[1750891936153,8.6090952,143.15,143.11,35.52759846]
[1750891936326,5.22684229,143.14,143.11,35.52759846]
[1750891936523,8.6090952,143.15,143.11,35.52759846]
[1750891936753,5.22697383,143.14,143.11,35.52759846]
[1750891936966,8.6090952,143.15,143.11,35.52759846]
[1750891937253,5.22697383,143.14,143.11,35.52759846]
[1750891937444,8.6090952,143.15,143.11,35.52759846]
[1750891937649,5.22711179,143.14,143.11,35.52759846]
[1750891937848,8.6090952,143.15,143.11,28.54]
[1750891938154,8.90618263,143.14,143.11,28.54]
[1750891938351,3.67906965,143.14,143.11,28.54]
[1750891942291,8.6090952,143.15,143.11,35.52759658]
[1750891942447,5.22741654,143.14,143.11,35.52759658]
[1750891942646,3.71906965,143.15,143.11,35.52759658]
[1750891942845,5.22732725,143.14,143.11,35.52759658]
[1750891943061,3.71906965,143.15,143.11,35.52759658]
[1750891943235,5.22725215,143.14,143.11,35.52759658]
[1750891943435,3.71906965,143.15,143.11,35.52759658]
[1750891943636,5.22712988,143.14,143.11,35.52759658]
[1750891943856,8.60906048,143.15,143.11,35.52759658]
[1750891944054,5.22712988,143.14,143.11,35.52759658]
[1750891944366,3.71906965,143.15,143.11,35.52759658]
[1750891944561,5.22710674,143.14,143.11,35.52759658]
[1750891944860,3.71906965,143.15,143.11,35.52759658]
[1750891946657,8.90605501,143.14,143.11,28.54]
[1750891946956,5.22698536,143.13,143.11,28.54]
[1750891947147,3.67906965,143.14,143.11,28.54]
[1750891947350,5.22731058,143.13,143.11,28.54]
[1750891947550,3.67906965,143.14,143.11,28.54]
[1750891947856,5.22755387,143.13,143.11,28.54]
[1750891948036,3.67906965,143.14,143.11,28.54]
[1750891948235,5.22755387,143.13,143.11,28.54]
[1750891948438,3.67906965,143.14,143.11,28.54]
[1750891948634,5.22781453,143.13,143.11,28.54]
[1750891948838,3.67906965,143.14,143.11,28.54]
[1750891949056,5.22781453,143.13,143.11,28.54]
[1750891949246,3.67906965,143.14,143.11,28.54]
[1750891949562,5.22781453,143.13,143.11,28.54]
[1750891949773,3.67906965,143.14,143.11,28.54]
[1750891949957,5.22837344,143.13,143.11,28.54]
[1750891950140,3.67906965,143.14,143.11,28.54]
[1750891950463,4.93007691,143.15,143.11,35.52756234]
[1750891950464,3.71906965,143.15,143.11,35.52756234]
[1750891950660,5.2286576,143.14,143.11,35.52756234]
[1750891950962,3.71906965,143.15,143.11,35.52756234]
[1750891951169,5.22865549,143.14,143.11,35.52756234]
[1750891951334,3.71906965,143.15,143.11,35.52756234]
[1750891951539,5.2286761,143.14,143.11,35.52756234]
[1750891951761,3.71906965,143.15,143.11,35.52756234]
[1750891951946,5.22929728,143.14,143.11,35.52756234]
[1750891952138,3.71906965,143.15,143.11,35.52756234]
[1750891952339,5.22929847,143.14,143.11,35.52756234]
[1750891952554,3.71906965,143.15,143.11,35.52756234]
[1750891952755,5.23005969,143.14,143.11,35.52756234]
[1750891952948,3.71906965,143.15,143.11,35.52756234]
[1750891953146,5.23006088,143.14,143.11,35.52756234]
[1750891953461,3.71906965,143.15,143.11,35.52756234]
[1750891953763,5.23099089,143.14,143.11,35.52756234]
[1750891953962,3.71906965,143.15,143.11,35.52756234]
[1750891954165,5.23099089,143.14,143.11,35.52756234]
[1750891954373,3.71906965,143.15,143.11,35.52756234]
[1750891954676,5.23134862,143.14,143.11,35.52756234]
[1750891954856,3.71906965,143.15,143.11,35.52756234]
[1750891955154,5.23134862,143.14,143.11,35.52756234]
[1750891955355,3.71906965,143.15,143.11,35.52756234]
[1750891955557,5.23176149,143.14,143.11,35.52756234]
[1750891955873,3.71906965,143.15,143.11,39.20663199]
[1750891956050,5.23168541,143.14,143.11,39.20663199]
[1750891956362,0.04,143.15,143.11,39.20663199]
[1750891956555,0.04,143.15,143.12,3.67906965]
[1750891956556,5.23152277,143.14,143.12,3.67906965]
[1750891956759,0.04,143.15,143.13,28.52]
[1750891956965,5.23151947,143.14,143.13,28.52]
[1750891957556,0.04,143.15,143.13,28.52]
[1750891962749,0.04,143.15,143.13,35.50664064]
[1750891963077,0.04,143.15,143.13,32.19906965]
[1750891963362,0.04,143.15,143.14,3.67906965]
[1750891965171,0.04,143.15,143.14,10.66523703]
[1750891969172,0.04,143.15,143.14,29.31488589]
[1750891971572,0.04,143.15,143.14,18.64964886]
[1750891973273,0.04,143.15,143.14,25.63581624]
[1750891973775,0.04,143.15,143.14,18.64964886]
[1750891979355,0.04,143.15,143.14,25.63581624]
[1750891981284,0.04,143.15,143.14,18.64964886]
[1750891982382,0.04,143.15,143.14,25.63581624]
[1750891983359,0.04,143.15,143.14,29.31488589]
[1750891996987,0.04,143.15,143.14,55.7413706]
[1750891997194,0.04,143.15,143.14,56.43998733]
[1750892000069,3e-07,143.16,143.15,19.07613357]
[1750892000270,0.04,143.18,143.15,51.25520322]
[1750892000478,0.04,143.18,143.17,29.67906965]
[1750892000692,0.04,143.18,143.17,58.17906965]
[1750892001399,0.04,143.18,143.17,65.16377314]
[1750892005087,0.04,143.2,143.18,18.64964886]
[1750892005275,0.04,143.2,143.19,50.80871851]
[1750892005880,0.04,143.2,143.19,28.48]
[1750892009207,0.04,143.2,143.19,54.11337677]
[1750892011503,0.04,143.2,143.19,57.79244642]
[1750892016081,0.04,143.2,143.19,54.11337677]
[1750892016280,0.04,143.2,143.19,57.79244642]
[1750892024289,0.04,143.2,143.19,83.79244642]
[1750892029217,0.04,143.2,143.19,84.21893113]
[1750892033902,0.04,143.2,143.19,98.93520973]
[1750892035909,0.04,143.2,143.19,84.21893113]
[1750892041313,0.04,143.2,143.19,98.93520973]
[1750892043806,0.04,143.2,143.19,84.21893113]
[1750892044724,1e-08,143.21,143.2,44.64964886]
[1750892045028,0.04,143.26,143.21,0.42648471]
[1750892045230,0.04,143.26,143.25,18.64964886]
[1750892045443,3.71906965,143.26,143.22,6.98226504]
[1750892045617,3.67906965,143.24,143.21,28.46]
[1750892046911,3.67906965,143.24,143.2,18.64964886]
[1750892047111,3.67906965,143.24,143.21,28.46]
[1750892047612,8.56597312,143.24,143.21,28.46]
[1750892048245,8.56597312,143.24,143.2,25.63272684]
[1750892048454,8.56597312,143.24,143.21,28.46]
[1750892049644,3.67906965,143.24,143.21,28.46]
[1750892050312,12.95172983,143.25,143.21,28.46]
[1750892050514,3.67906965,143.24,143.21,28.46]
[1750892051139,3.67906965,143.23,143.21,28.46]
[1750892051345,3.67906965,143.24,143.21,28.46]
[1750892052946,12.95172983,143.25,143.21,28.46]
[1750892053245,3.67906965,143.24,143.21,28.46]
[1750892053625,16.63079948,143.25,143.21,28.46]
[1750892055046,16.63079948,143.25,143.21,28.44]
[1750892057247,3.67906965,143.24,143.21,28.44]
[1750892057447,12.95172983,143.25,143.21,28.44]
[1750892057745,3.67906965,143.24,143.21,35.42269799]
[1750892059533,12.95172983,143.25,143.21,35.42269799]
[1750892059534,8.065,143.25,143.21,39.10176764]
[1750892059734,11.74406965,143.25,143.21,39.10176764]
[1750892060953,8.065,143.25,143.22,3.67906965]
[1750892061359,3.71906965,143.26,143.23,28.44]
[1750892063659,0.04,143.26,143.23,35.42133301]
[1750892065053,0.04,143.26,143.23,39.10040266]
[1750892065552,0.04,143.26,143.25,18.64964886]
[1750892065743,0.04,143.26,143.23,39.10040266]
[1750892069438,0.04,143.26,143.23,35.42133301]
[1750892069740,3.71906965,143.26,143.23,35.42133301]
[1750892071064,3.67906965,143.24,143.23,28.44]
[1750892071241,3.67906965,143.25,143.23,28.44]
[1750892071637,3.67906965,143.24,143.18,6.1]
[1750892071843,3.67906965,143.22,143.2,18.64964886]
[1750892072456,13.051412,143.26,143.2,18.64964886]
[1750892072645,3.67906965,143.22,143.2,18.64964886]